{"text_format":"1","workbook":"xlsx","n_sheets":2,"sheets":["Budowa","Remont"],"not_rendered":{"charts":0,"images":0,"macros":1,"external_links":0,"defined_names":4,"comments":0,"pivot_tables":0},"unopened":[],"bounds":{"document_bytes":16777216,"sheet_cells":100000,"rows_first":2000,"rows_last":500,"rows_between":2000,"halvings":0,"cell_chars":16384,"cell_head_chars":4096},"cells_cut":0,"cells_raw":0,"read":"whole","date_system":"1900"}

{"sheet":"Budowa","index":0,"n_rows":236,"n_cols":26,"rows_kept":236,"cut":false,"hidden":false,"merged":[[37,22,37,25],[38,22,38,25],[37,17,37,21],[38,17,38,21],[37,10,38,15],[37,4,38,9],[37,0,38,3],[72,23,72,25],[73,23,73,25],[73,10,73,11],[57,0,57,3],[57,4,57,25],[58,1,58,25],[71,1,71,25],[55,0,55,3],[55,4,55,25],[56,0,56,3],[56,4,56,25],[59,0,59,25],[67,0,67,25],[63,0,63,25],[49,0,49,25],[50,0,50,3],[50,4,50,25],[213,4,213,24],[72,13,72,18],[73,13,73,18],[72,1,72,9],[73,1,73,9],[77,12,77,18],[78,12,78,18],[76,23,76,25],[72,19,72,22],[73,19,73,22],[74,19,74,22],[75,19,75,22],[76,19,76,22],[77,19,77,22],[78,19,78,22],[72,10,72,11],[107,4,107,23],[107,24,107,25],[108,1,108,4],[108,6,108,25],[109,2,109,25],[132,16,132,17],[133,18,133,25],[134,5,134,15],[112,1,113,4],[112,5,112,15],[112,16,112,17],[74,10,74,11],[75,10,75,11],[76,10,76,11],[110,1,111,4],[110,5,110,15],[110,16,110,17],[74,1,74,9],[75,1,75,9],[76,1,76,9],[77,1,77,9],[78,1,78,9],[92,3,92,23],[84,0,84,1],[84,21,84,23],[85,0,85,9],[86,0,86,9],[85,10,85,14],[85,15,85,20],[86,10,86,20],[79,0,79,25],[80,0,80,1],[74,23,74,25],[75,23,75,25],[77,23,77,25],[78,23,78,25],[75,12,75,18],[76,12,76,18],[74,13,74,18],[77,10,77,11],[78,10,78,11],[110,18,110,25],[111,5,111,15],[95,2,95,25],[96,2,96,25],[97,3,97,25],[98,4,98,23],[98,24,98,25],[99,4,99,23],[99,24,99,25],[92,24,92,25],[93,2,93,23],[93,24,93,25],[94,3,94,23],[94,24,94,25],[88,1,88,4],[88,6,88,25],[222,4,222,24],[113,16,113,17],[113,18,113,25],[128,2,128,25],[129,16,129,17],[129,18,129,25],[129,5,129,15],[126,1,126,4],[126,5,126,6],[126,7,126,25],[127,1,127,4],[127,5,127,6],[127,7,127,25],[129,1,130,4],[125,5,125,6],[125,7,125,25],[119,1,119,4],[226,4,226,24],[227,4,227,24],[111,16,111,17],[111,18,111,25],[143,8,143,13],[144,8,144,13],[145,8,145,13],[146,8,146,13],[143,14,143,19],[144,14,144,19],[145,14,145,19],[146,14,146,19],[143,20,143,25],[144,20,144,25],[145,20,145,25],[146,20,146,25],[114,1,115,4],[114,5,114,15],[114,16,114,17],[114,18,114,25],[115,5,115,15],[115,16,115,17],[115,18,115,25],[113,5,113,15],[120,2,120,25],[121,1,121,4],[121,5,121,25],[117,5,117,12],[117,14,117,25],[118,5,118,12],[234,2,234,25],[235,0,235,25],[212,3,212,25],[217,3,217,25],[218,3,218,25],[207,0,207,1],[207,2,207,10],[207,11,207,16],[207,17,207,25],[208,0,208,1],[208,2,208,10],[208,11,208,16],[208,17,208,25],[214,4,214,24],[215,4,215,24],[216,4,216,24],[204,0,204,25],[205,0,205,1],[236,0,236,25],[130,5,130,15],[130,16,130,17],[130,18,130,25],[225,4,225,24],[228,4,228,24],[229,4,229,24],[230,4,230,24],[231,4,231,24],[233,1,233,25],[219,3,219,25],[220,3,220,25],[221,4,221,24],[223,4,223,24],[224,4,224,24],[209,0,209,25],[134,18,134,25],[131,1,132,4],[131,5,131,15],[131,16,131,17],[131,18,131,25],[132,5,132,15],[210,1,210,25],[211,3,211,25],[205,2,205,10],[205,11,205,16],[205,17,205,25],[206,0,206,1],[206,2,206,10],[206,11,206,16],[206,17,206,25],[202,1,202,4],[202,5,202,6],[202,7,202,10],[202,11,202,13],[202,14,202,25],[203,1,203,4],[203,5,203,6],[203,7,203,10],[203,11,203,13],[203,14,203,25],[200,2,200,25],[201,1,201,4],[201,5,201,6],[201,7,201,10],[201,11,201,13],[201,14,201,25],[198,1,198,4],[198,5,198,6],[198,7,198,10],[198,11,198,13],[198,14,198,25],[199,1,199,4],[199,5,199,6],[199,7,199,10],[199,11,199,13],[199,14,199,25],[196,2,196,25],[197,1,197,4],[197,5,197,6],[197,7,197,10],[197,11,197,13],[197,14,197,25],[194,1,194,4],[194,5,194,6],[194,7,194,10],[194,11,194,13],[194,14,194,25],[195,1,195,4],[195,5,195,6],[195,7,195,10],[195,11,195,13],[195,14,195,25],[192,2,192,25],[193,1,193,4],[193,5,193,6],[193,7,193,10],[193,11,193,13],[193,14,193,25],[189,1,189,4],[189,5,189,6],[190,1,190,4],[190,5,190,6],[189,7,189,25],[190,7,190,25],[186,1,186,4],[186,5,186,6],[186,7,186,10],[186,11,186,25],[187,2,187,25],[188,1,188,4],[188,5,188,6],[188,7,188,25],[191,1,191,4],[191,6,191,25],[183,2,183,25],[184,1,184,4],[184,5,184,6],[184,7,184,10],[184,11,184,25],[185,1,185,4],[185,5,185,6],[185,7,185,10],[185,11,185,25],[181,1,181,4],[181,5,181,6],[181,7,181,10],[181,11,181,13],[181,14,181,25],[182,1,182,4],[182,5,182,6],[182,7,182,10],[182,11,182,13],[182,14,182,25],[178,1,178,4],[178,5,178,6],[178,7,178,25],[179,2,179,25],[180,1,180,4],[180,5,180,6],[180,7,180,10],[180,11,180,13],[180,14,180,25],[177,1,177,4],[177,5,177,6],[177,7,177,25],[173,1,173,4],[173,5,173,6],[173,7,173,10],[173,11,173,13],[173,14,173,25],[174,1,174,4],[174,5,174,6],[174,7,174,10],[174,11,174,13],[174,14,174,25],[171,2,171,25],[172,1,172,4],[172,5,172,6],[172,7,172,10],[172,11,172,13],[172,14,172,25],[175,2,175,25],[176,1,176,4],[176,5,176,6],[176,7,176,25],[166,1,166,4],[166,5,166,6],[166,7,166,9],[162,1,162,4],[162,6,162,25],[163,2,163,25],[164,1,164,4],[164,5,164,6],[164,7,164,9],[164,10,164,12],[165,10,165,12],[166,10,166,12],[164,13,164,25],[165,13,165,25],[166,13,166,25],[154,3,154,23],[154,24,154,25],[156,2,156,25],[157,3,157,23],[157,24,157,25],[155,3,155,23],[155,24,155,25],[151,2,151,25],[152,3,152,23],[152,24,152,25],[153,3,153,25],[161,3,161,23],[161,24,161,25],[158,3,158,23],[158,24,158,25],[159,3,159,23],[159,24,159,25],[165,1,165,4],[165,5,165,6],[165,7,165,9],[160,3,160,23],[160,24,160,25],[149,3,149,21],[149,22,149,23],[150,3,150,25],[140,0,140,3],[140,4,140,10],[140,11,140,14],[140,15,140,18],[140,19,140,20],[140,21,140,25],[146,0,146,7],[147,2,147,25],[144,0,144,7],[145,0,145,7],[141,0,141,20],[141,21,141,25],[142,0,142,25],[143,0,143,7],[148,3,148,21],[148,22,148,23],[148,24,148,25],[122,1,122,4],[122,5,122,25],[123,1,123,4],[123,5,123,25],[124,2,124,25],[125,1,125,4],[137,15,137,18],[137,19,137,20],[137,21,137,25],[134,16,134,17],[119,5,119,12],[119,14,119,25],[139,0,139,3],[139,4,139,10],[139,11,139,14],[139,15,139,18],[139,19,139,20],[139,21,139,25],[138,0,138,3],[138,4,138,10],[138,11,138,14],[138,15,138,18],[138,19,138,20],[138,21,138,25],[132,18,132,25],[133,1,134,4],[133,5,133,15],[133,16,133,17],[135,1,135,4],[135,6,135,25],[136,0,136,25],[137,0,137,3],[137,4,137,10],[137,11,137,14],[116,2,116,25],[117,1,117,4],[118,1,118,4],[89,2,89,25],[90,3,90,23],[90,24,90,25],[91,3,91,23],[91,24,91,25],[87,0,87,25],[106,4,106,23],[106,24,106,25],[100,4,100,23],[100,24,100,25],[101,4,101,23],[101,24,101,25],[102,4,102,23],[102,24,102,25],[103,3,103,25],[104,4,104,23],[104,24,104,25],[105,4,105,23],[105,24,105,25],[118,14,118,25],[112,18,112,25],[84,24,84,25],[83,21,83,23],[83,24,83,25],[83,2,83,9],[84,2,84,9],[83,10,83,14],[84,10,84,14],[83,15,83,20],[84,15,84,20],[82,21,82,23],[82,24,82,25],[80,2,80,9],[81,2,81,9],[82,2,82,9],[80,10,80,14],[81,10,81,14],[82,10,82,14],[80,15,80,20],[81,15,81,20],[82,15,82,20],[81,0,81,1],[82,0,82,1],[83,0,83,1],[52,0,52,3],[52,4,52,25],[53,0,53,3],[53,4,53,25],[54,0,54,3],[54,4,54,25],[60,1,60,4],[60,5,60,25],[61,1,61,4],[61,5,61,25],[62,1,62,4],[62,5,62,25],[64,5,64,25],[64,1,64,4],[65,1,65,4],[66,1,66,4],[65,5,65,25],[66,5,66,25],[80,21,80,25],[81,21,81,23],[81,24,81,25],[51,0,51,3],[51,4,51,25],[45,1,45,10],[45,11,45,25],[46,1,46,20],[46,21,46,25],[47,1,47,10],[47,11,47,25],[40,6,40,11],[40,12,40,17],[40,18,40,25],[41,0,41,5],[41,6,41,11],[41,12,41,17],[41,18,41,25],[48,1,48,20],[48,21,48,25],[24,0,24,25],[25,0,25,16],[25,17,25,25],[26,0,26,16],[26,17,26,25],[27,0,27,16],[35,0,35,25],[36,0,36,25],[32,0,32,3],[32,4,32,16],[33,0,33,3],[33,4,33,16],[34,0,34,25],[30,0,30,16],[31,0,31,3],[31,4,31,16],[31,17,31,20],[31,21,31,25],[168,10,168,12],[168,13,168,25],[169,10,169,12],[169,13,169,25],[170,10,170,12],[170,13,170,25],[167,2,167,25],[168,1,168,4],[168,5,168,6],[168,7,168,9],[169,1,169,4],[169,5,169,6],[169,7,169,9],[170,1,170,4],[170,5,170,6],[170,7,170,9],[68,1,68,4],[69,1,69,4],[70,1,70,4],[68,5,68,25],[69,5,69,25],[70,5,70,25],[27,17,29,25],[30,17,30,25],[32,17,32,20],[32,21,32,25],[33,17,33,20],[33,21,33,25],[28,0,28,2],[28,3,28,16],[29,0,29,2],[29,3,29,16],[42,0,42,20],[42,21,42,25],[43,1,43,10],[43,11,43,25],[44,1,44,20],[44,21,44,25],[39,0,39,25],[40,0,40,5]]}
[]
[null,"buski",null,null,null,null,"gminna",null,null,null,null,null,null,"stycznia",null,null,null,"styczeń",null,null,null,2023]
[null,"jędrzejowski",null,null,null,null,"powiatowa",null,null,null,null,null,null,"lutego",null,null,null,"luty",null,null,null,2024]
[null,"kazimierski",null,null,null,null,null,null,null,null,null,null,null,"marca",null,null,null,"marzec",null,null,null,2025]
[null,"kielecki",null,null,null,null,"jednoroczne",null,null,null,null,null,null,"kwietnia",null,null,null,"kwiecień",null,null,null,2026]
[null,"konecki",null,null,null,null,"wieloletnie",null,null,null,null,null,null,"maja",null,null,null,"maj",null,null,null,2027]
[null,"opatowski",null,null,null,null,"mniejszy niż 30 minut",null,null,null,null,null,null,"czerwca",null,null,null,"czerwiec",null,null,null,2028]
[null,"ostrowiecki",null,null,null,null,"w przedziale od 30 do 50 minut",null,null,null,null,null,null,"lipca",null,null,null,"lipiec"]
[null,"pińczowski",null,null,null,null,"większy niż 50 minut",null,null,null,null,null,null,"sierpnia",null,null,null,"sierpień"]
[null,"sandomierski",null,null,null,null,null,null,null,null,null,null,null,"września",null,null,null,"wrzesień"]
[null,"skarżyski",null,null,null,null,"TAK ",null,"X",null,null,null,null,"października",null,null,null,"październik"]
[null,"starachowicki",null,null,null,null,"NIE",null,"ꟷ",null,null,null,null,"listopada",null,null,null,"listopad"]
[null,"staszowski",null,null,null,null,"NIE DOTYCZY",null,null,null,null,null,null,"grudnia",null,null,null,"grudzień"]
[null,"włoszczowski"]
[]
[null,"przebudowa",null,null,"D",null,"1 × 1 (z mijankami)",null,null,"2,25 m",null,"w całości"]
[null,"rozbudowa",null,null,"L",null,"1 × 2 (i więcej)",null,null,"2,50 m",null,"w części"]
[null,"budowa",null,null,"Z",null,"2 × 2 (i więcej)",null,null,"2,75 m"]
[null,null,null,null,"G",null,null,null,null,"3,00 m",null,"bezpośredni"]
[null,null,null,null,"GP",null,null,null,null,"3,25 m",null,"pośredni"]
[null,null,null,null,null,null,null,null,null,"3,50 m",null,"bezpośredni i pośredni"]
[null,null,null,null,null,null,null,null,null,"> 3,50 m"]
[]
[]
["WNIOSEK O DOFINANSOWANIE W RAMACH RZĄDOWEGO FUNDUSZU ROZWOJU DRÓG\n(budowa, rozbudowa, przebudowa)   "]
["PIECZĘĆ WPŁYWU DO URZĘDU WOJEWÓDZKIEGO",null,null,null,null,null,null,null,null,null,null,null,null,null,null,null,null,"NUMER EWIDENCYJNY WNIOSKU"]
[]
["1. NAZWA J.S.T. i ADRES",null,null,null,null,null,null,null,null,null,null,null,null,null,null,null,null,"UWAGA:\nPRZED WYPEŁNIENIEM NALEŻY ZAPOZNAĆ SIĘ Z INSTRUKCJĄ WYPEŁNIANIA WNIOSKU"]
["NAZWA "]
["ADRES "]
["2. LOKALIZACJA DROGI",null,null,null,null,null,null,null,null,null,null,null,null,null,null,null,null,"   3. KATEGORIA I NUMER DROGI"]
["POWIAT "]
["GMINA ",null,null,null,null,null,null,null,null,null,null,null,null,null,null,null,null,{"$f":"IF(ISBLANK($R$32),\" \",IF(R32=\"brak nr drogi\",\"\",IF(ISBLANK(V33),\"\",$R$32)))","v":" "}]
["MIEJSCOWOŚĆ ",null,null,null,null,null,null,null,null,null,null,null,null,null,null,null,null,{"$f":"IF(ISBLANK($R$32),\" \",IF(R33=\"brak nr drogi\",\"\",IF(ISBLANK(V34),\"\",$R$32)))","v":" "}]
["4. TYTUŁ ZADANIA "]
[]
["5. OKRES REALIZACJI (rozpoczęcie i faktyczne zakończenie zadania)"]
["zadanie ",null,null,null,null,null,null,null,null,null,"realizowane",null,null,null,null,null,"od",null,null,null,null,null,2023]
[null,null,null,null,null,null,null,null,null,null,null,null,null,null,null,null,"do"]
["6. DŁUGOŚĆ ODCINKÓW DRÓG OBJĘTYCH ZADANIEM, WG RODZAJU ROBÓT BUDOWLANYCH [km]"]
["BUDOWA ",null,null,null,null,null,"ROZBUDOWA ",null,null,null,null,null,"PRZEBUDOWA ",null,null,null,null,null,"RAZEM "]
[null,null,null,null,null,null,null,null,null,null,null,null,null,null,null,null,null,null,{"$f":"SUM(A42:R42)","v":0}]
["7. ŁĄCZNY KOSZT REALIZACJI ZADANIA BRUTTO - WYDATKI KWALIFIKOWALNE [zł]",null,null,null,null,null,null,null,null,null,null,null,null,null,null,null,null,null,null,null,null,{"$f":"SUM(V45,V47)","v":0}]
[null,"SŁOWNIE KWOTA WYDATKÓW KWALIFIKOWALNYCH",null,null,null,null,null,null,null,null,null,{"$f":"IF(V43=0,\" \",Slownie(V43))","v":" "}]
[null,"KWOTA WKŁADU WŁASNEGO [zł]"]
[null,"SŁOWNIE KWOTA WKŁADU WŁASNEGO",null,null,null,null,null,null,null,null,null,{"$f":"IF(V45=0,\" \",Slownie(V45))","v":" "}]
[null,"KWOTA WNIOSKOWANEGO DOFINANSOWANIA [zł]"]
[null,"SŁOWNIE WNIOSKOWANA KWOTA DOFINANSOWANIA",null,null,null,null,null,null,null,null,null,{"$f":"IF(V47=0,\" \",Slownie(V47))","v":" "}]
[null,"UDZIAŁ DOFINANSOWANIA W KOSZTACH KWALIFIKOWALNYCH ZADANIA [%]",null,null,null,null,null,null,null,null,null,null,null,null,null,null,null,null,null,null,null,{"$f":"IF(V43=0,\" \",V47/V43)","v":" "}]
["8. TERMIN DOKONYWANIA WYPŁAT NA RZECZ WYKONAWCY ZADANIA"]
[null,null,null,null,"KWOTA DO WYPŁATY"]
[2023]
[2024]
[2025]
[2026]
[2027]
[2028]
["ŁĄCZNIE",null,null,null,{"$f":"SUM(E52:Z57)","v":0}]
["9. ","OPIS ZADANIA OBEJMUJĄCY STAN ISTNIEJĄCY ORAZ PROJEKTOWANY WRAZ Z UZASADNIENIEM REALIZACJI ZADANIA"]
["STAN ISTNIEJĄCY:"]
[null,"odcinek nr 1 "]
[null,"odcinek nr 2 "]
[null,"odcinek nr 3 "]
["STAN PROJEKTOWANY:"]
[null,"odcinek nr 1 "]
[null,"odcinek nr 2 "]
[null,"odcinek nr 3 "]
["UZASADNIENIE REALIZACJI ZADANIA:"]
[null,"odcinek nr 1 "]
[null,"odcinek nr 2 "]
[null,"odcinek nr 3 "]
["10.","INFORMACJA O DOPEŁNIENIU WYMOGÓW, JAKIE W ZWIĄZKU Z PLANOWANĄ REALIZACJĄ ZADANIA WYNIKAJĄ Z OBOWIĄZUJĄCYCH PRZEPISÓW PRAWA"]
[1,"Zezwolenie na Realizację Inwestycji Drogowej - ZRID",null,null,null,null,null,null,null,null,null,null,"nr",null,null,null,null,null,null,"data wydania "]
[2,"Pozwolenie na budowę",null,null,null,null,null,null,null,null,null,null,"nr",null,null,null,null,null,null,"data wydania "]
[3,"Zgłoszenie robót budowlanych - oświadczenie organu architektoniczno-budowlanego o braku sprzeciwu",null,null,null,null,null,null,null,null,null,null,"nr",null,null,null,null,null,null,"data wydania "]
[4,"Projekt budowlany",null,null,null,null,null,null,null,null,null,null,null,null,null,null,null,null,null,"data opracowania "]
[5,"Opracowanie do zgłoszenia robót budowlanych",null,null,null,null,null,null,null,null,null,null,null,null,null,null,null,null,null,"data opracowania "]
[6,"Kosztorys inwestorski",null,null,null,null,null,null,null,null,null,null,null,null,null,null,null,null,null,"data opracowania "]
[7,"Projekt stałej organizacji ruchu",null,null,null,null,null,null,null,null,null,null,null,null,null,null,null,null,null,"data opracowania "]
["11. HARMONOGRAM RZECZOWO-FINANSOWY REALIZACJI ZADANIA"]
["Lp.",null,"ELEMENTY I RODZAJE ROBÓT",null,null,null,null,null,null,null,"KOSZT KWALIFIKOWALNY\n [zł]",null,null,null,null,"KOSZT NIEKWALIFIKOWALNY\n [zł]",null,null,null,null,null,"ZAKOŃCZENIE REALIZACJI \n(miesiac i rok)"]
[1,null,"Przygotowanie dokumentacji (tylko w trybie \"zaprojektuj i wybuduj\" i tylko dla zadań wieloletnich)"]
[2,null,"Roboty budowlane"]
[3,null,"Nadzór inwestorski (wszystkie branże)"]
[4,null,"Tablice informacyjne"]
["SUMA ",null,null,null,null,null,null,null,null,null,{"$f":"SUM(K82:O85)","v":0},null,null,null,null,{"$f":"SUM(P82:U85)","v":0}]
["OGÓŁEM ",null,null,null,null,null,null,null,null,null,{"$f":"SUM(K86:U86)","v":0}]
["12. CHARAKTERYSTYKA ZADANIA WEDŁUG KRYTERIÓW OCENY MERYTORYCZNEJ"]
[null,"Kryterium nr 1",null,null,null,"ꟷ","Wpływ zadania na poprawę bezpieczeństwa ruchu drogowego"]
[null,"A. ","Ryzyko społeczne wypadków [TAK/NIE]"]
[null,null,"•","Odcinek przebiega przez powiat o bardzo dużym lub dużym poziomie ryzyka społecznego - wypadki ogółem, ofiary śmiertelne i ciężko ranne: klasa ryzyka D i E"]
[null,null,"•","Odcinek przebiega przez powiat o bardzo dużym lub dużym poziomie ryzyka społecznego - wypadki z udziałem pieszych: klasa ryzyka D i E"]
[null,null,"•","Odcinek przebiega przez powiat o bardzo dużym lub dużym poziomie ryzyka społecznego - wypadki spowodowane zbyt dużą prędkością: klasa ryzyka D i E "]
[null,"B.","Realizacja projektu obejmuje, co najmniej jedno ze zgłoszeń określonych w Programie Likwidacji Miejsc Niebezpiecznych na Drogach Lokalnych w województwie świętokrzyskim 2019 - 2023 Bezpieczni na 5+ [TAK/NIE]"]
[null,null,"•","Pozycja, pod którą zgłoszenie znajduje się w Programie Bezpieczni na 5+"]
[null,"C. ","Rozwiązania zwiększające bezpieczeństwo uczestników ruchu drogowego (spełniające wymogi Wytycznych do projektowania infrastruktury dla pieszych WRD-41-3) [TAK/NIE]"]
[null,null,"ROZWIAZANIA DODATKOWE/SPECJALNE"]
[null,null,"1)","przejścia dla pieszych o podwyższonym standardzie bezpieczeństwa, w tym:"]
[null,null,null,"•","oświetlenie przejścia dla pieszych lub przejazdu dla rowerzystów"]
[null,null,null,"•","przejście dla pieszych lub przejazd dla rowerzystów z wyspą dzieląca (tzw. azylem)"]
[null,null,null,"•","wyniesione przejście dla pieszych lub przejazd dla rowerzystów"]
[null,null,null,"•","sygnalizacja świetlna na przejściu dla pieszych lub na przejeździe dla rowerzystów"]
[null,null,null,"•","oznakowanie aktywne lub sygnalizacja ostrzegawcza na przejściu dla pieszych lub na przejeździe dla rowerzystów"]
[null,null,"2)","inne rozwiązania w zakresie bezpieczeństwa niezwiązane z przejściem dla pieszych:"]
[null,null,null,"•","wyniesione skrzyżowanie"]
[null,null,null,"•","wyspa dzieląca na jezdni, wraz z odgięciem toru jazdy, na wjeździe do miejscowości "]
[null,null,null,"•","radar ze znakiem/tablicą zmiennej treści (aktywną), informującym o prędkości ruchu pojazdu"]
[null,null,null,"•","oznakowanie aktywne na dojeździe do przejazdu kolejowo-drogowego "]
[null,"Kryterium nr 2",null,null,null,"ꟷ","Znaczenie zadania dla rozwoju spójnej sieci dróg publicznych "]
[null,"A. ","Czy odcinek ma bezpośrednie połączenie z drogą wyższego rzędu lub stanowi kontynuację (przebudowy, budowy, rozbudowy) drogi w ramach wcześniej złożonych wniosków o dofinansowanie w ramach RFRD"]
[null,"odcinek nr 1 ",null,null,null,"bezpośrednie połączenie z drogą wyższego rzędu"]
[null,null,null,null,null,"kontynuacja drogi w ramach wcześniejszych wniosków RFRD"]
[null,"odcinek nr 2",null,null,null,"bezpośrednie połączenie z drogą wyższego rzędu"]
[null,null,null,null,null,"kontynuacja drogi w ramach wcześniejszych wniosków RFRD"]
[null,"odcinek nr 3",null,null,null,"bezpośrednie połączenie z drogą wyższego rzędu"]
[null,null,null,null,null,"kontynuacja drogi w ramach wcześniejszych wniosków RFRD"]
[null,"B. ","Czy odcinek biegnie przez gminę, dla której wskaźnik peryferyjności czasowej jest mniejszy niż 30 min., mieści się w przedziale 30 do 50 minut, czy jest większy niż 50 min."]
[null,"odcinek nr 1 ",null,null,null,"wskaźnik peryferyjności czasowej:"]
[null,"odcinek nr 2 ",null,null,null,"wskaźnik peryferyjności czasowej:"]
[null,"odcinek nr 3 ",null,null,null,"wskaźnik peryferyjności czasowej:"]
[null,"C. ","Jakie jest przewidywane znaczenie wnioskowanego odcinka drogi dla rozwoju społeczno - gospodarczego województwa"]
[null,"odcinek nr 1 "]
[null,"odcinek nr 2 "]
[null,"odcinek nr 3 "]
[null,"D. ","Czy odcinek stanowić będzie zamknięcie spójnego ciągu komunikacyjnego"]
[null,"odcinek nr 1 "]
[null,"odcinek nr 2 "]
[null,"odcinek nr 3 "]
[null,"E. ","Czy droga została uszkodzona w wyniku działania niekorzystnych zjawisk atmosferycznych i jest ujęta w protokole strat potwierdzonym przez Wojewodę Świętokrzyskiego"]
[null,"odcinek nr 1 ",null,null,null,"uszkodzona w wyniku działania niekorzystnych zjawisk atmosferycznych"]
[null,null,null,null,null,"ujęta w protokole strat potwierdzonym przez Wojewodę Świętokrzyskiego"]
[null,"odcinek nr 2",null,null,null,"uszkodzona w wyniku działania niekorzystnych zjawisk atmosferycznych"]
[null,null,null,null,null,"ujęta w protokole strat potwierdzonym przez Wojewodę Świętokrzyskiego"]
[null,"odcinek nr 3",null,null,null,"uszkodzona w wyniku działania niekorzystnych zjawisk atmosferycznych"]
[null,null,null,null,null,"ujęta w protokole strat potwierdzonym przez Wojewodę Świętokrzyskiego"]
[null,"Kryterium nr 3\n",null,null,null,"ꟷ\n","Podnoszenie standardów technicznych dróg oraz zachowanie ich jednorodności pod względem spełniania tych standardów"]
["DANE PODSTAWOWE"]
[null,null,null,null,"rodzaj robót budowlanych",null,null,null,null,null,null,"kategoria",null,null,null,"numer",null,null,null,"klasa",null,"długość [km]"]
["odcinek nr 1 ",null,null,null,null,null,null,null,null,null,null,{"$f":"IF(ISBLANK($R$32),\" \",$R$32)","v":" "},null,null,null,{"$f":"IF(ISBLANK(V32),\" \",V32)","v":" "}]
["odcinek nr 2 ",null,null,null,null,null,null,null,null,null,null,{"$f":"IF(ISBLANK($R$33),\" \",$R$33)","v":" "},null,null,null,{"$f":"IF(ISBLANK(V33),\" \",V33)","v":" "}]
["odcinek nr 3 ",null,null,null,null,null,null,null,null,null,null,{"$f":"IF(ISBLANK($R$34),\" \",$R$34)","v":" "},null,null,null,{"$f":"IF(ISBLANK(V34),\" \",V34)","v":" "}]
["ŁĄCZNIE ",null,null,null,null,null,null,null,null,null,null,null,null,null,null,null,null,null,null,null,null,{"$f":"SUM(V139:Z141)","v":0}]
["JEZDNIE"]
[null,null,null,null,null,null,null,null,"przekrój",null,null,null,null,null,"szerokość pasa ruchu",null,null,null,null,null,"zgoda na odstępstwo"]
["odcinek nr 1 "]
["odcinek nr 2 "]
["odcinek nr 3 "]
[null,"A. ","Skrzyżowania:"]
[null,null,"•","przebudowywane/budowane skrzyżowania zwykłe z drogami publicznymi"]
[null,null,"•","przebudowywane/budowane skrzyżowania skanalizowane, w formie ronda lub inne podnoszące poziom bezpieczeństwa np. z sygalizacją świetlną ",null,null,null,null,null,null,null,null,null,null,null,null,null,null,null,null,null,null,null,null,null,"szt."]
[]
[null,"B. ","Drogowe obiekty inżynierskie:"]
[null,null,"•","most, wiadukt, estakada, kładka dla pieszych"]
[]
[null,null,"•","przepust pod koroną drogi"]
[null,null,"•","konstrukcja oporowa"]
[null,"C. ","Rodzaj robót budowlanych realizowanych w ramach wnioskowanego zadania"]
[null,null,"•","Czy w ramach zadania nastąpi budowa/przebudowa/rozbudowa chodnika dla pieszych"]
[null,null,"•","Czy w ramach zadania nastąpi budowa/przebudowa/rozbudowa ścieżki pieszo-rowerowej"]
[null,null,"•","Czy w ramach zadania nastąpi montaż oświetlenia ulicznego"]
[null,null,"•","Czy w ramach zadania nastąpi przebudowa drogi wewnętrznej i zaliczenie jej do kategorii dróg publicznych "]
[null,null,"•","Czy w ramach zadania będzie realizowana budowa obwodnicy "]
[null,"Kryterium nr 4",null,null,null,"ꟷ","Zwiększenie dostępności transportowej jednostek administracyjnych"]
[null,"A.","Odcinek przebiega w całości lub w części na obszarze wiejskim (wykracza poza granice administracyjne miasta)"]
[null,"odcinek nr 1 ",null,null,null,null,null,"przebiega"]
[null,"odcinek nr 2 ",null,null,null,null,null,"przebiega"]
[null,"odcinek nr 3 ",null,null,null,null,null,"przebiega"]
[null,"B.","Odcinek przebiega w całości lub w części w granicach administracyjnych miast ujętych w pakiecie dla średnich miast uznanych za zagrożone utratą funkcji społeczno - gospodarczych (na podstawie Analizy Instytutu Geografii i Przestrzennego Zagospodarowania PAN)"]
[null,"odcinek nr 1 ",null,null,null,null,null,"przebiega"]
[null,"odcinek nr 2 ",null,null,null,null,null,"przebiega"]
[null,"odcinek nr 3 ",null,null,null,null,null,"przebiega"]
[null,"C.","Odcinek stanowi bezpośredni/pośredni dojazd do miejsc publicznych tj. cmentarz, boisko, urząd gminy, szkoła, amfiteatr, remiza OSP, ośrodek zdrowia, ośrodek pomocy społecznej, świetlica wiejska, obiekty zabytkowe i sakralne"]
[null,"odcinek nr 1 ",null,null,null,null,null,null,null,null,null,"dojazd do:"]
[null,"odcinek nr 2 ",null,null,null,null,null,null,null,null,null,"dojazd do:"]
[null,"odcinek nr 3 ",null,null,null,null,null,null,null,null,null,"dojazd do:"]
[null,"D.","Odcinek drogi przyczynia się do poprawy dostępności komunikacyjnej obszarów o niższym poziomie zamożności"]
[null,"odcinek nr 1 "]
[null,"odcinek nr 2 "]
[null,"odcinek nr 3 "]
[null,"E.","Odcinek drogi stanowi dojazd do nieruchomości, na których zostały zrealizowane lub będą realizowane przez gminę lub związek miedzygminny inwestycje mieszkaniowe w ramach programów społeczno - gospodarczych m.in.: mieszkania na wynajem, noclegownie, schroniska dla osób bezdomnych, mieszkania chronione (dojazd pośredni - położenie powyżej 200 m.b od drogi, dojazd bezpośredni - położenie do 200 m.b. od drogi)"]
[null,"odcinek nr 1 ",null,null,null,null,null,null,null,null,null,"dojazd do:"]
[null,"odcinek nr 2 ",null,null,null,null,null,null,null,null,null,"dojazd do:"]
[null,"odcinek nr 3 ",null,null,null,null,null,null,null,null,null,"dojazd do:"]
[null,"F.","Odcinek drogi prowadzi do obiektu użyteczności publicznej objetego dofinansowaniem z programu \"Maluch+\", Senior, Rządowego Funduszu Inwestycji Lokalnych"]
[null,"odcinek nr 1 ",null,null,null,null,null,"prowadzi do:"]
[null,"odcinek nr 2 ",null,null,null,null,null,"prowadzi do:"]
[null,"odcinek nr 3 ",null,null,null,null,null,"prowadzi do:"]
[null,"G.","Bezpośrednio w ciągu drogi objętej zadaniem przebiega linia autobusowa objęta wsparciem z Funduszu Rozwoju Przewozów Autobusowych, lub realizowane są usługi transportu publicznego lub uchwalono planowany przebieg linii użyteczności publicznej"]
[null,"odcinek nr 1 "]
[null,"odcinek nr 2 "]
[null,"odcinek nr 3 "]
[null,"Kryterium nr 5",null,null,null,"ꟷ","Poprawa dostępności do terenów gospodarczych i inwestycyjnych"]
[null,"A.","Czy odcinek stanowi bezpośredni/pośredni dojazd do lokalnych ośrodków gospodarczych np. do strefy ekonomicznej, podmiotów gospodarczych, lokalnego targowiska."]
[null,"odcinek nr 1 ",null,null,null,null,null,null,null,null,null,"dojazd do:"]
[null,"odcinek nr 2 ",null,null,null,null,null,null,null,null,null,"dojazd do:"]
[null,"odcinek nr 3 ",null,null,null,null,null,null,null,null,null,"dojazd do:"]
[null,"B.","Czy odcinek umożliwia bezpośredni/pośredni dojazd do terenów inwestycyjnych, rozumianych jako tereny przeznaczone w studium uwarunkowań przestrzennych, miejscowym planie zagospodarowania lub w decyzji lokalizacyjnej pod działalność gospodarczą. "]
[null,"odcinek nr 1 ",null,null,null,null,null,null,null,null,null,"dojazd do:"]
[null,"odcinek nr 2 ",null,null,null,null,null,null,null,null,null,"dojazd do:"]
[null,"odcinek nr 3 ",null,null,null,null,null,null,null,null,null,"dojazd do:"]
[null,"C.","Czy odcinek stanowi bezpośredni/pośredni dojazd do terenów, na których jest prowadzona produkcja rolna, sadownictwo, ogrodnictwo lub/i zlokalizowane są gospodarstwa agroturystyczne, ważne ze względu na specyfikę obszaru.  "]
[null,"odcinek nr 1 ",null,null,null,null,null,null,null,null,null,"dojazd do:"]
[null,"odcinek nr 2 ",null,null,null,null,null,null,null,null,null,"dojazd do:"]
[null,"odcinek nr 3 ",null,null,null,null,null,null,null,null,null,"dojazd do:"]
["13. OSOBY UPOWAŻNIONE DO UDZIELANIA WYJAŚNIEŃ KOMISJI"]
["Lp.",null,"imię i nazwisko",null,null,null,null,null,null,null,null,"nr telefonu",null,null,null,null,null,"e-mail"]
[1]
[2]
[3]
["14. OŚWIADCZENIE WNIOSKODAWCY (ustawowego zarządcy drogi)"]
[null,"Wnioskodawca oświadcza, że: "]
[null,null,"1)","dane i informacje zawarte we wniosku są prawidłowe i kompletne, "]
[null,null,"2)","zadanie obejmuje wyłącznie drogi publiczne, które: "]
[null,null,null,"•","zostały zaliczone do kategorii dróg powiatowych, "]
[null,null,null,"•","zostały zaliczone do kategorii dróg gminnych, "]
[null,null,null,"•","w  wyniku realizacji zadania objętego wnioskiem zostaną zaliczone do kategorii dróg powiatowych, "]
[null,null,null,"•","w  wyniku realizacji zadania objętego wnioskiem zostaną zaliczone do kategorii dróg gminnych,   "]
[null,null,"3)","jednostka zobowiązuje się do realizacji inwestycji drogowej z zachowaniem przepisów techniczno-budowlanych dotyczących dróg publicznych oraz odpowiedniego oznakowania i zastosowania urządzeń bezpieczeństwa i organizacji ruchu,"]
[null,null,"4)","zapewnione zostanie zabezpieczenie całości zadeklarowanego we wniosku wkładu własnego,"]
[null,null,"5)","wkład własny obejmuje wyłącznie środki nie pochodzące z budżetu państwa ani z budżetu Unii Europejskiej,"]
[null,null,"6)","do wniosku dołączone zostały załączniki:   "]
[null,null,null,"a)","kopia prawomocnej decyzji o pozwoleniu na budowę/decyzji o zezwoleniu na realizację inwestycji drogowej - dotyczy robót realizowanych na podstawie pozwolenia na budowę lub ZRID (obligatoryjnie) - nie dotyczy wniosków w formule \"zaprojektuj i wybuduj\","]
[null,null,null,"b)","zaświadczenie organu administracji architektoniczno-budowlanej o braku podstaw do wniesienia sprzeciwu na zgłoszenie wykonania robót budowlanych - dotyczy robót realizowanych na podstawie zgłoszenia (obligatoryjnie) - nie dotyczy wniosków w formule \"zaprojektuj i wybuduj\","]
[null,null,null,"c)","czytelna mapa poglądowa z zaznaczonymi elementami mającymi wpływ na ocenę merytoryczną wniosku - dotyczy kryterium nr 4 i nr 5 (obligatoryjnie),"]
[null,null,null,"d)","kopia strony projektu stałej organizacji ruchu, z której wynika, że projekt jest zatwierdzony lub pismo organu uprawnionego do zatwierdzenia organizacji ruchu (obligatoryjnie) - nie dotyczy wniosków w formule \"zaprojektuj i wybuduj\","]
[null,null,null,"e)","kopia projektu zagospodarowania terenu, a w przypadku wniosków w formule \"zaprojektuj i wybuduj\"  - koncepcja planu / zakresu zagospodarowania terenu z podaniem charakterystycznych parametrów (dł., szer. jezdni, poboczy i innych elementów drogi) z Programu funkcjonalno-użytkowego (PFU)  (obligatoryjnie),"]
[null,null,null,"f)","rysunki  z charakterystycznymi przekrojami poprzecznymi pasa drogowego w liniach rozgraniczających z wykazaniem wszystkich elementów drogi - przekroje normalne i przekroje konstrukcyjne lub normalno-konstrukcyjne , a w przypadku wniosków w formule \"zaprojektuj i wybuduj\"  - rysunek konstrukcyjny z Programu funkcjonalno-użytkowego (PFU) (obligatoryjnie)"]
[null,null,null,"g)","kopia kosztorysu inwestorskiego,  a w przypadku wniosków w formule \"zaprojektuj i wybuduj\"  - szacunkowe koszty realizacji inwestycji wraz z kosztami szacunkowymi opracowania dokumentacji projektowej z Programu funkcjonalno-użytkowego (PFU) (obligatoryjnie),"]
[null,null,null,"h)","kopia zgody na odstępstwo od przepisów techniczno-budowlanych (jeśli dotyczy), "]
[null,null,null,"i)","oświadczenie o realizacji inwestycji zgodnie z warunkami technicznymi określonymi w rozporządzeniu MTiGM z dnia 2 marca 1999 r. w sprawie warunków technicznych, jakim powinny odpowiadać drogi publiczne i ich usytuowanie (obligatoryjnie),"]
[null,null,null,"j)","informacja dotycząca komplementarności zadania z programami rządowymi z podaniem nazwy programu, numeru i daty umowy z Wojewodą lub umowy/umów wynikających z programów społeczno - gospodarczych - dotyczy kryterium nr 4 (jeśli dotyczy), "]
[null,null,null,"k)","oświadczenie o przekazaniu danych o sieci dróg publicznych  do Generalnego Dyrektora Dróg Krajowych i Autostrad (obligatoryjnie)."]
[]
[null,"Ja, niżej podpisany zobowiązuję się do: "]
[null,null,"• przeprowadzenia postępowania o zamówienie publiczne zgodnie z obowiązującymi przepisami Prawa zamówień publicznych.     "]
["Podpisy i pieczątki osób upoważnionych z ramienia wnioskodawcy (wraz z podpisem Skarbnika/Głównego Księgowego) - ustawowy zarządca drogi"]

{"sheet":"Remont","index":1,"n_rows":217,"n_cols":26,"rows_kept":217,"cut":false,"hidden":false,"merged":[[24,0,24,25],[88,0,89,0],[74,1,74,9],[74,10,74,11],[74,19,74,22],[74,23,74,25],[72,1,72,9],[72,10,72,11],[72,19,72,22],[72,23,72,25],[73,1,73,9],[73,10,73,11],[73,19,73,22],[73,23,73,25],[83,1,83,4],[83,6,83,25],[84,2,84,25],[85,3,85,23],[77,15,77,20],[78,2,78,9],[78,10,78,14],[85,24,85,25],[193,17,193,25],[194,0,194,1],[194,2,194,10],[194,11,194,16],[194,17,194,25],[217,0,217,25],[58,0,58,25],[62,0,62,25],[71,1,71,9],[71,10,71,11],[71,13,71,18],[71,19,71,22],[71,23,71,25],[216,0,216,25],[195,0,195,1],[195,2,195,10],[195,11,195,16],[195,17,195,25],[196,0,196,1],[196,2,196,10],[196,11,196,16],[196,17,196,25],[208,4,208,24],[203,3,203,25],[204,3,204,25],[205,4,205,24],[206,4,206,24],[207,4,207,24],[197,0,197,25],[198,1,198,25],[199,3,199,25],[200,3,200,25],[209,4,209,24],[210,4,210,24],[214,1,214,25],[215,2,215,25],[211,4,211,24],[212,4,212,24],[191,1,191,4],[191,5,191,6],[191,7,191,10],[191,11,191,13],[191,14,191,25],[188,2,188,25],[189,1,189,4],[189,5,189,6],[189,7,189,10],[189,11,189,13],[189,14,189,25],[190,1,190,4],[190,5,190,6],[190,7,190,10],[190,11,190,13],[190,14,190,25],[201,3,201,25],[202,3,202,25],[192,0,192,25],[193,0,193,1],[193,2,193,10],[193,11,193,16],[186,1,186,4],[186,5,186,6],[186,7,186,10],[186,11,186,13],[186,14,186,25],[187,1,187,4],[187,5,187,6],[187,7,187,10],[187,11,187,13],[187,14,187,25],[184,2,184,25],[185,1,185,4],[185,5,185,6],[185,7,185,10],[185,11,185,13],[185,14,185,25],[182,1,182,4],[182,5,182,6],[182,7,182,10],[182,11,182,13],[182,14,182,25],[183,1,183,4],[183,5,183,6],[183,7,183,10],[183,11,183,13],[183,14,183,25],[180,2,180,25],[181,1,181,4],[181,5,181,6],[181,7,181,10],[181,11,181,13],[181,14,181,25],[177,1,177,4],[177,5,177,6],[178,1,178,4],[178,5,178,6],[177,7,177,25],[178,7,178,25],[174,1,174,4],[174,5,174,6],[174,7,174,10],[174,11,174,25],[175,2,175,25],[176,1,176,4],[176,5,176,6],[176,7,176,25],[179,1,179,4],[179,6,179,25],[171,2,171,25],[172,1,172,4],[172,5,172,6],[172,7,172,10],[172,11,172,25],[173,1,173,4],[173,5,173,6],[173,7,173,10],[173,11,173,25],[169,1,169,4],[169,5,169,6],[169,7,169,10],[169,11,169,13],[169,14,169,25],[170,1,170,4],[170,5,170,6],[170,7,170,10],[170,11,170,13],[170,14,170,25],[166,1,166,4],[166,5,166,6],[166,7,166,25],[167,2,167,25],[168,1,168,4],[168,5,168,6],[168,7,168,10],[168,11,168,13],[168,14,168,25],[163,2,163,25],[164,1,164,4],[164,5,164,6],[164,7,164,25],[165,1,165,4],[165,5,165,6],[165,7,165,25],[161,1,161,4],[161,5,161,6],[161,7,161,10],[161,11,161,13],[161,14,161,25],[162,1,162,4],[162,5,162,6],[162,7,162,10],[162,11,162,13],[162,14,162,25],[158,1,158,4],[158,5,158,6],[158,7,158,9],[159,2,159,25],[160,1,160,4],[160,5,160,6],[160,7,160,10],[160,11,160,13],[160,14,160,25],[158,10,158,12],[158,13,158,25],[155,2,155,25],[156,1,156,4],[156,5,156,6],[156,7,156,9],[157,1,157,4],[157,5,157,6],[157,7,157,9],[156,10,156,12],[156,13,156,25],[157,10,157,12],[157,13,157,25],[153,1,153,4],[153,5,153,6],[153,7,153,9],[154,1,154,4],[154,5,154,6],[154,7,154,9],[150,1,150,4],[150,6,150,25],[151,2,151,25],[152,1,152,4],[152,5,152,6],[152,7,152,9],[152,10,152,12],[152,13,152,25],[153,10,153,12],[153,13,153,25],[154,10,154,12],[154,13,154,25],[144,3,144,23],[144,24,144,25],[141,2,141,25],[142,3,142,23],[142,24,142,25],[143,3,143,25],[145,3,145,23],[145,24,145,25],[139,3,139,21],[139,22,139,23],[140,3,140,25],[137,2,137,25],[136,0,136,20],[136,21,136,25],[135,11,135,14],[135,15,135,18],[135,19,135,20],[135,21,135,25],[135,0,135,10],[138,3,138,21],[138,22,138,23],[138,24,138,25],[134,11,134,14],[134,15,134,18],[134,19,134,20],[134,21,134,25],[133,11,133,14],[133,15,133,18],[133,19,133,20],[133,21,133,25],[133,0,133,10],[134,0,134,10],[130,1,130,4],[130,6,130,25],[131,0,131,25],[132,11,132,14],[132,15,132,18],[132,19,132,20],[132,21,132,25],[132,0,132,10],[128,1,129,4],[128,5,128,15],[128,16,128,17],[128,18,128,25],[129,5,129,15],[129,16,129,17],[129,18,129,25],[126,1,127,4],[126,5,126,15],[126,16,126,17],[126,18,126,25],[127,5,127,15],[127,16,127,17],[127,18,127,25],[123,2,123,25],[124,1,125,4],[124,5,124,15],[124,16,124,17],[124,18,124,25],[125,5,125,15],[125,16,125,17],[125,18,125,25],[122,1,122,4],[122,5,122,6],[122,7,122,25],[117,1,117,4],[117,5,117,25],[118,1,118,4],[118,5,118,25],[119,2,119,25],[120,1,120,4],[120,5,120,6],[120,7,120,25],[115,2,115,25],[116,1,116,4],[116,5,116,25],[113,1,113,4],[113,5,113,12],[113,14,113,25],[121,1,121,4],[121,5,121,6],[121,7,121,25],[107,5,107,15],[107,16,107,17],[107,18,107,25],[108,5,108,15],[108,16,108,17],[108,18,108,25],[114,1,114,4],[114,5,114,12],[114,14,114,25],[111,2,111,25],[112,1,112,4],[112,5,112,12],[112,14,112,25],[109,1,110,4],[109,5,109,15],[109,16,109,17],[109,18,109,25],[110,5,110,15],[110,16,110,17],[110,18,110,25],[107,1,108,4],[102,4,102,23],[102,24,102,25],[103,1,103,4],[103,6,103,25],[104,2,104,25],[105,1,106,4],[105,5,105,15],[105,16,105,17],[105,18,105,25],[106,5,106,15],[106,16,106,17],[106,18,106,25],[98,3,98,25],[99,4,99,23],[99,24,99,25],[100,4,100,23],[100,24,100,25],[101,4,101,23],[101,24,101,25],[95,4,95,23],[95,24,95,25],[96,4,96,23],[96,24,96,25],[97,4,97,23],[97,24,97,25],[90,2,90,25],[91,2,91,25],[92,3,92,25],[93,4,93,23],[93,24,93,25],[94,4,94,23],[94,24,94,25],[87,3,87,23],[87,24,87,25],[88,2,88,23],[88,24,88,25],[89,3,89,23],[89,24,89,25],[81,10,81,20],[56,0,56,3],[56,4,56,25],[57,1,57,25],[70,1,70,25],[79,0,79,1],[79,2,79,9],[79,10,79,14],[79,15,79,20],[79,21,79,23],[79,24,79,25],[80,0,80,9],[80,10,80,14],[80,15,80,20],[72,12,72,18],[73,12,73,18],[74,12,74,18],[75,0,75,25],[76,0,76,1],[54,0,54,3],[54,4,54,25],[55,0,55,3],[55,4,55,25],[51,0,51,3],[51,4,51,25],[52,0,52,3],[52,4,52,25],[53,0,53,3],[53,4,53,25],[47,1,47,20],[47,21,47,25],[48,0,48,25],[49,0,49,3],[49,4,49,25],[50,0,50,3],[50,4,50,25],[44,1,44,10],[44,11,44,25],[45,1,45,20],[45,21,45,25],[46,1,46,10],[46,11,46,25],[43,1,43,20],[43,21,43,25],[39,0,39,25],[40,18,40,25],[35,0,35,25],[36,0,36,25],[40,0,40,17],[37,0,38,3],[37,4,38,9],[37,10,38,15],[37,17,37,21],[37,22,37,25],[38,17,38,21],[38,22,38,25],[34,0,34,25],[30,0,30,16],[31,0,31,3],[31,4,31,16],[33,17,33,20],[33,21,33,25],[41,0,41,20],[41,21,41,25],[42,1,42,10],[42,11,42,25],[30,17,30,25],[32,17,32,20],[32,21,32,25],[31,17,31,20],[31,21,31,25],[27,17,29,25],[32,0,32,3],[32,4,32,16],[33,0,33,3],[33,4,33,16],[28,0,28,2],[28,3,28,16],[29,0,29,2],[29,3,29,16],[25,0,25,16],[25,17,25,25],[26,0,26,16],[26,17,26,25],[27,0,27,16],[76,21,76,25],[76,2,76,9],[76,10,76,14],[76,15,76,20],[59,1,59,4],[59,5,59,25],[60,1,60,4],[60,5,60,25],[61,1,61,4],[61,5,61,25],[63,1,63,4],[63,5,63,25],[64,1,64,4],[64,5,64,25],[65,1,65,4],[65,5,65,25],[66,0,66,25],[67,1,67,4],[67,5,67,25],[146,2,146,25],[147,3,147,23],[147,24,147,25],[148,3,148,23],[148,24,148,25],[149,3,149,23],[149,24,149,25],[68,1,68,4],[68,5,68,25],[69,1,69,4],[69,5,69,25],[78,0,78,1],[78,21,78,23],[78,24,78,25],[77,0,77,1],[77,21,77,23],[77,24,77,25],[77,2,77,9],[77,10,77,14],[78,15,78,20],[86,3,86,23],[86,24,86,25],[82,0,82,25],[81,0,81,9]]}
[]
[null,"buski",null,null,null,null,"gminna",null,null,null,null,null,null,"stycznia",null,null,null,"styczeń",null,null,null,2023]
[null,"jędrzejowski",null,null,null,null,"powiatowa",null,null,null,null,null,null,"lutego",null,null,null,"luty",null,null,null,2024]
[null,"kazimierski",null,null,null,null,null,null,null,null,null,null,null,"marca",null,null,null,"marzec",null,null,null,2025]
[null,"kielecki",null,null,null,null,"jednoroczne",null,null,null,null,null,null,"kwietnia",null,null,null,"kwiecień",null,null,null,2026]
[null,"konecki",null,null,null,null,"wieloletnie",null,null,null,null,null,null,"maja",null,null,null,"maj",null,null,null,2027]
[null,"opatowski",null,null,null,null,"mniejszy niż 30 minut",null,null,null,null,null,null,"czerwca",null,null,null,"czerwiec",null,null,null,2028]
[null,"ostrowiecki",null,null,null,null,"w przedziale od 30 do 50 minut",null,null,null,null,null,null,"lipca",null,null,null,"lipiec"]
[null,"pińczowski",null,null,null,null,"większy niż 50 minut",null,null,null,null,null,null,"sierpnia",null,null,null,"sierpień"]
[null,"sandomierski",null,null,null,null,null,null,null,null,null,null,null,"września",null,null,null,"wrzesień"]
[null,"skarżyski",null,null,null,null,"TAK ",null,"X",null,null,null,null,"października",null,null,null,"październik"]
[null,"starachowicki",null,null,null,null,"NIE",null,"ꟷ",null,null,null,null,"listopada",null,null,null,"listopad"]
[null,"staszowski",null,null,null,null,null,null,null,null,null,null,null,"grudnia",null,null,null,"grudzień"]
[null,"włoszczowski"]
[]
[null,"przebudowa",null,null,"D",null,"1 × 1 (z mijankami)",null,null,"2,25 m",null,"w całości"]
[null,"rozbudowa",null,null,"L",null,"1 × 2 (i więcej)",null,null,"2,50 m",null,"w części"]
[null,"budowa",null,null,"Z",null,"2 × 2 (i więcej)",null,null,"2,75 m"]
[null,null,null,null,"G",null,null,null,null,"3,00 m",null,"bezpośredni"]
[null,null,null,null,"GP",null,null,null,null,"3,25 m",null,"pośredni"]
[null,null,null,null,null,null,null,null,null,"3,50 m",null,"bezpośredni i pośredni"]
[null,null,null,null,null,null,null,null,null,"> 3,50 m"]
[]
[]
["WNIOSEK O DOFINANSOWANIE W RAMACH RZĄDOWEGO FUNDUSZU ROZWOJU DRÓG\n(remont)   "]
["PIECZĘĆ WPŁYWU DO URZĘDU WOJEWÓDZKIEGO",null,null,null,null,null,null,null,null,null,null,null,null,null,null,null,null,"NUMER EWIDENCYJNY WNIOSKU"]
[]
["1. NAZWA J.S.T. i ADRES",null,null,null,null,null,null,null,null,null,null,null,null,null,null,null,null,"UWAGA:\nPRZED WYPEŁNIENIEM NALEŻY ZAPOZNAĆ SIĘ Z INSTRUKCJĄ WYPEŁNIANIA WNIOSKU"]
["NAZWA "]
["ADRES "]
["2. LOKALIZACJA DROGI",null,null,null,null,null,null,null,null,null,null,null,null,null,null,null,null,"   3. KATEGORIA I NUMER DROGI"]
["POWIAT "]
["GMINA ",null,null,null,null,null,null,null,null,null,null,null,null,null,null,null,null,{"$f":"IF(ISBLANK($R$32),\" \",IF(R32=\"brak nr drogi\",\"\",IF(ISBLANK(V33),\"\",$R$32)))","v":" "}]
["MIEJSCOWOŚĆ ",null,null,null,null,null,null,null,null,null,null,null,null,null,null,null,null,{"$f":"IF(ISBLANK($R$32),\" \",IF(R33=\"brak nr drogi\",\"\",IF(ISBLANK(V34),\"\",$R$32)))","v":" "}]
["4. TYTUŁ ZADANIA "]
[]
["5. OKRES REALIZACJI (rozpoczęcie i faktyczne zakończenie zadania)"]
["zadanie ",null,null,null,null,null,null,null,null,null,"realizowane",null,null,null,null,null,"od",null,null,null,null,null,2023]
[null,null,null,null,null,null,null,null,null,null,null,null,null,null,null,null,"do"]
["6. DŁUGOŚĆ ODCINKÓW DRÓG OBJĘTYCH ZADANIEM, WG RODZAJU ROBÓT BUDOWLANYCH [km]"]
["REMONT   "]
["7. ŁĄCZNY KOSZT REALIZACJI ZADANIA BRUTTO - WYDATKI KWALIFIKOWALNE [zł]",null,null,null,null,null,null,null,null,null,null,null,null,null,null,null,null,null,null,null,null,{"$f":"SUM(V44,V46)","v":0}]
[null,"SŁOWNIE KWOTA WYDATKÓW KWALIFIKOWALNYCH",null,null,null,null,null,null,null,null,null,{"$f":"IF(V42=0,\" \",Slownie(V42))","v":" "}]
[null,"KWOTA WKŁADU WŁASNEGO [zł]"]
[null,"SŁOWNIE KWOTA WKŁADU WŁASNEGO",null,null,null,null,null,null,null,null,null,{"$f":"IF(V44=0,\" \",Slownie(V44))","v":" "}]
[null,"KWOTA WNIOSKOWANEGO DOFINANSOWANIA [zł]"]
[null,"SŁOWNIE WNIOSKOWANA KWOTA DOFINANSOWANIA",null,null,null,null,null,null,null,null,null,{"$f":"IF(V46=0,\" \",Slownie(V46))","v":" "}]
[null,"UDZIAŁ DOFINANSOWANIA W KOSZTACH KWALIFIKOWALNYCH ZADANIA [%]",null,null,null,null,null,null,null,null,null,null,null,null,null,null,null,null,null,null,null,{"$f":"IF(V42=0,\" \",V46/V42)","v":" "}]
["8. TERMIN DOKONYWANIA WYPŁAT NA RZECZ WYKONAWCY ZADANIA"]
[null,null,null,null,"KWOTA DO WYPŁATY"]
[2023]
[2024]
[2025]
[2026]
[2027]
[2028]
["ŁĄCZNIE",null,null,null,{"$f":"SUM(E51:Z56)","v":0}]
["9. ","OPIS ZADANIA OBEJMUJĄCY STAN ISTNIEJĄCY ORAZ PROJEKTOWANY WRAZ Z UZASADNIENIEM REALIZACJI ZADANIA"]
["STAN ISTNIEJĄCY:"]
[null,"odcinek nr 1 "]
[null,"odcinek nr 2 "]
[null,"odcinek nr 3 "]
["STAN PROJEKTOWANY:"]
[null,"odcinek nr 1 "]
[null,"odcinek nr 2 "]
[null,"odcinek nr 3 "]
["UZASADNIENIE REALIZACJI ZADANIA:"]
[null,"odcinek nr 1 "]
[null,"odcinek nr 2 "]
[null,"odcinek nr 3 "]
["10. ","INFORMACJA O DOPEŁNIENIU WYMOGÓW, JAKIE W ZWIĄZKU Z PLANOWANĄ REALIZACJĄ ZADANIA WYNIKAJĄ Z OBOWIĄZUJĄCYCH PRZEPISÓW PRAWA"]
[1,"Zgłoszenie robót budowlanych - oświadczenie organu architektoniczno-budowlanego o braku sprzeciwu",null,null,null,null,null,null,null,null,null,null,"nr",null,null,null,null,null,null,"data wydania "]
[2,"Opracowanie do zgłoszenia robót budowlanych",null,null,null,null,null,null,null,null,null,null,null,null,null,null,null,null,null,"data opracowania "]
[3,"Kosztorys inwestorski",null,null,null,null,null,null,null,null,null,null,null,null,null,null,null,null,null,"data opracowania "]
[4,"Projekt stałej organizacji ruchu",null,null,null,null,null,null,null,null,null,null,null,null,null,null,null,null,null,"data opracowania "]
["11. HARMONOGRAM RZECZOWO-FINANSOWY REALIZACJI ZADANIA"]
["Lp.",null,"ELEMENTY I RODZAJE ROBÓT",null,null,null,null,null,null,null,"KOSZT KWALIFIKOWALNY\n [zł]",null,null,null,null,"KOSZT NIEKWALIFIKOWALNY\n [zł]",null,null,null,null,null,"ZAKOŃCZENIE REALIZACJI \n(miesiac i rok)"]
[1,null,"Roboty budowlane"]
[2,null,"Nadzór inwestorski (wszystkie branże)"]
[3,null,"Tablice informacyjne"]
["SUMA ",null,null,null,null,null,null,null,null,null,{"$f":"SUM(K78:O80)","v":0},null,null,null,null,{"$f":"SUM(P78:U80)","v":0}]
["OGÓŁEM ",null,null,null,null,null,null,null,null,null,{"$f":"SUM(K81:U81)","v":0}]
["12. CHARAKTERYSTYKA ZADANIA WEDŁUG KRYTERIÓW OCENY MERYTORYCZNEJ"]
[null,"Kryterium nr 1",null,null,null,"ꟷ","Wpływ zadania na poprawę bezpieczeństwa ruchu drogowego"]
[null,"A. ","Ryzyko społeczne wypadków [TAK/NIE]"]
[null,null,"•","Odcinek przebiega przez powiat o bardzo dużym lub dużym poziomie ryzyka społecznego - wypadki ogółem, ofiary śmiertelne i ciężko ranne: klasa ryzyka D i E"]
[null,null,"•","Odcinek przebiega przez powiat o bardzo dużym lub dużym poziomie ryzyka społecznego - wypadki z udziałem pieszych: klasa ryzyka D i E"]
[null,null,"•","Odcinek przebiega przez powiat o bardzo dużym lub dużym poziomie ryzyka społecznego - wypadki spowodowane zbyt dużą prędkością: klasa ryzyka D i E "]
[null,"B.","Realizacja projektu obejmuje, co najmniej jedno ze zgłoszeń określonych w Programie Likwidacji Miejsc Niebezpiecznych na Drogach Lokalnych w województwie świętokrzyskim 2019 - 2023 Bezpieczni na 5+ [TAK/NIE]"]
[null,null,"•","Pozycja, pod którą zgłoszenie znajduje się w Programie Bezpieczni na 5+"]
[null,"C. ","Rozwiązania zwiększające bezpieczeństwo uczestników ruchu drogowego (spełniające wymogi Wytycznych do projektowania infrastruktury dla pieszych WRD-41-3) [TAK/NIE]"]
[null,null,"ROZWIAZANIA DODATKOWE/SPECJALNE"]
[null,null,"1)","przejścia dla pieszych o podwyższonym standardzie bezpieczeństwa, w tym:"]
[null,null,null,"•","oświetlenie przejścia dla pieszych lub przejazdu dla rowerzystów"]
[null,null,null,"•","przejście dla pieszych lub przejazd dla rowerzystów z wyspą dzieląca (tzw. azylem)"]
[null,null,null,"•","wyniesione przejście dla pieszych lub przejazd dla rowerzystów"]
[null,null,null,"•","sygnalizacja świetlna na przejściu dla pieszych lub na przejeździe dla rowerzystów"]
[null,null,null,"•","oznakowanie aktywne lub sygnalizacja ostrzegawcza na przejściu dla pieszych lub na przejeździe dla rowerzystów"]
[null,null,"2)","inne rozwiązania w zakresie bezpieczeństwa niezwiązane z przejściem dla pieszych:"]
[null,null,null,"•","wyniesione skrzyżowanie"]
[null,null,null,"•","wyspa dzieląca na jezdni, wraz z odgięciem toru jazdy, na wjeździe do miejscowości "]
[null,null,null,"•","radar ze znakiem/tablicą zmiennej treści (aktywną), informującym o prędkości ruchu pojazdu"]
[null,null,null,"•","oznakowanie aktywne na dojeździe do przejazdu kolejowo-drogowego "]
[null,"Kryterium nr 2",null,null,null,"ꟷ","Znaczenie zadania dla rozwoju spójnej sieci dróg publicznych "]
[null,"A. ","Czy odcinek ma bezpośrednie połączenie z drogą wyższego rzędu lub stanowi kontynuację remontu drogi w ramach wcześniej złożonych wniosków o dofinansowanie w ramach RFRD"]
[null,"odcinek nr 1 ",null,null,null,"bezpośrednie połączenie z drogą wyższego rzędu"]
[null,null,null,null,null,"kontynuacja drogi w ramach wcześniejszych wniosków RFRD"]
[null,"odcinek nr 2",null,null,null,"bezpośrednie połączenie z drogą wyższego rzędu"]
[null,null,null,null,null,"kontynuacja drogi w ramach wcześniejszych wniosków RFRD"]
[null,"odcinek nr 3",null,null,null,"bezpośrednie połączenie z drogą wyższego rzędu"]
[null,null,null,null,null,"kontynuacja drogi w ramach wcześniejszych wniosków RFRD"]
[null,"B. ","Czy odcinek biegnie przez gminę, dla której wskaźnik peryferyjności czasowej jest mniejszy niż 30 min., mieści się w przedziale 30 do 50 minut, czy jest większy niż 50 min."]
[null,"odcinek nr 1 ",null,null,null,"wskaźnik peryferyjności czasowej:"]
[null,"odcinek nr 2 ",null,null,null,"wskaźnik peryferyjności czasowej:"]
[null,"odcinek nr 3 ",null,null,null,"wskaźnik peryferyjności czasowej:"]
[null,"C. ","Jakie jest przewidywane znaczenie wnioskowanego odcinka drogi dla rozwoju społeczno - gospodarczego województwa"]
[null,"odcinek nr 1 "]
[null,"odcinek nr 2 "]
[null,"odcinek nr 3 "]
[null,"D. ","Czy odcinek stanowić będzie zamknięcie spójnego ciągu komunikacyjnego"]
[null,"odcinek nr 1 "]
[null,"odcinek nr 2 "]
[null,"odcinek nr 3 "]
[null,"E. ","Czy droga została uszkodzona w wyniku działania niekorzystnych zjawisk atmosferycznych i jest ujęta w protokole strat potwierdzonym przez Wojewodę Świętokrzyskiego"]
[null,"odcinek nr 1 ",null,null,null,"uszkodzona w wyniku działania niekorzystnych zjawisk atmosferycznych"]
[null,null,null,null,null,"ujęta w protokole strat potwierdzonym przez Wojewodę Świętokrzyskiego"]
[null,"odcinek nr 2",null,null,null,"uszkodzona w wyniku działania niekorzystnych zjawisk atmosferycznych"]
[null,null,null,null,null,"ujęta w protokole strat potwierdzonym przez Wojewodę Świętokrzyskiego"]
[null,"odcinek nr 3",null,null,null,"uszkodzona w wyniku działania niekorzystnych zjawisk atmosferycznych"]
[null,null,null,null,null,"ujęta w protokole strat potwierdzonym przez Wojewodę Świętokrzyskiego"]
[null,"Kryterium nr 3\n",null,null,null,"ꟷ\n","Podnoszenie standardów technicznych dróg oraz zachowanie ich jednorodności pod względem spełniania tych standardów"]
["DANE PODSTAWOWE"]
[null,null,null,null,null,null,null,null,null,null,null,"kategoria",null,null,null,"numer",null,null,null,"klasa",null,"długość [km]"]
["odcinek nr 1 ",null,null,null,null,null,null,null,null,null,null,{"$f":"IF(ISBLANK($R$32),\" \",$R$32)","v":" "},null,null,null,{"$f":"IF(ISBLANK(V32),\" \",V32)","v":" "}]
["odcinek nr 2 ",null,null,null,null,null,null,null,null,null,null,{"$f":"IF(ISBLANK($R$33),\" \",$R$33)","v":" "},null,null,null,{"$f":"IF(ISBLANK(V33),\" \",V33)","v":" "}]
["odcinek nr 3 ",null,null,null,null,null,null,null,null,null,null,{"$f":"IF(ISBLANK($R$34),\" \",$R$34)","v":" "},null,null,null,{"$f":"IF(ISBLANK(V34),\" \",V34)","v":" "}]
["ŁĄCZNIE ",null,null,null,null,null,null,null,null,null,null,null,null,null,null,null,null,null,null,null,null,{"$f":"SUM(V134:Z136)","v":0}]
[null,"A. ","Skrzyżowania:"]
[null,null,"•","remontowane skrzyżowania zwykłe z drogami publicznymi"]
[null,null,"•","remontowane skrzyżowania skanalizowane, w formie ronda lub inne podnoszące poziom bezpieczeństwa np. z sygalizacją świetlną ",null,null,null,null,null,null,null,null,null,null,null,null,null,null,null,null,null,null,null,null,null,"szt."]
[]
[null,"B. ","Drogowe obiekty inżynierskie:"]
[null,null,"•","most, wiadukt, estakada, kładka dla pieszych"]
[]
[null,null,"•","przepust pod koroną drogi"]
[null,null,"•","konstrukcja oporowa"]
[null,"C. ","Rodzaj robót budowlanych realizowanych w ramach wnioskowanego zadania"]
[null,null,"•","Czy w ramach zadania nastąpi remont chodnika dla pieszych"]
[null,null,"•","Czy w ramach zadania nastąpi remont ścieżki pieszo-rowerowej"]
[null,null,"•","Czy w ramach zadania nastąpi remont oświetlenia ulicznego"]
[null,"Kryterium nr 4",null,null,null,"ꟷ","Zwiększenie dostępności transportowej jednostek administracyjnych"]
[null,"A.","Odcinek przebiega w całości lub w części na obszarze wiejskim (wykracza poza granice administracyjne miasta)"]
[null,"odcinek nr 1 ",null,null,null,null,null,"przebiega"]
[null,"odcinek nr 2 ",null,null,null,null,null,"przebiega"]
[null,"odcinek nr 3 ",null,null,null,null,null,"przebiega"]
[null,"B.","Odcinek przebiega w całości lub w części w granicach administracyjnych miast ujętych w pakiecie dla średnich miast uznanych za zagrożone utratą funkcji społeczno - gospodarczych (na podstawie Analizy Instytutu Geografii i Przestrzennego Zagospodarowania PAN)"]
[null,"odcinek nr 1 ",null,null,null,null,null,"przebiega"]
[null,"odcinek nr 2 ",null,null,null,null,null,"przebiega"]
[null,"odcinek nr 3 ",null,null,null,null,null,"przebiega"]
[null,"C.","Odcinek stanowi bezpośredni/pośredni dojazd do miejsc publicznych tj. cmentarz, boisko, urząd gminy, szkoła, amfiteatr, remiza OSP, ośrodek zdrowia, ośrodek pomocy społecznej, świetlica wiejska, obiekty zabytkowe i sakralne"]
[null,"odcinek nr 1 ",null,null,null,null,null,null,null,null,null,"dojazd do:"]
[null,"odcinek nr 2 ",null,null,null,null,null,null,null,null,null,"dojazd do:"]
[null,"odcinek nr 3 ",null,null,null,null,null,null,null,null,null,"dojazd do:"]
[null,"D.","Odcinek drogi przyczynia się do poprawy dostępności komunikacyjnej obszarów o niższym poziomie zamożności"]
[null,"odcinek nr 1 "]
[null,"odcinek nr 2 "]
[null,"odcinek nr 3 "]
[null,"E.","Odcinek drogi stanowi dojazd do nieruchomości, na których zostały zrealizowane lub będą realizowane przez gminę lub związek miedzygminny inwestycje mieszkaniowe w ramach programów społeczno - gospodarczych m.in.: mieszkania na wynajem, noclegownie, schroniska dla osób bezdomnych, mieszkania chronione (dojazd pośredni - położenie powyżej 200 m.b od drogi, dojazd bezpośredni - położenie do 200 m.b. od drogi)"]
[null,"odcinek nr 1 ",null,null,null,null,null,null,null,null,null,"dojazd do:"]
[null,"odcinek nr 2 ",null,null,null,null,null,null,null,null,null,"dojazd do:"]
[null,"odcinek nr 3 ",null,null,null,null,null,null,null,null,null,"dojazd do:"]
[null,"F.","Odcinek drogi prowadzi do obiektu użyteczności publicznej objetego dofinansowaniem z programu \"Maluch+\", Senior, Rządowego Funduszu Inwestycji Lokalnych"]
[null,"odcinek nr 1 ",null,null,null,null,null,"prowadzi do:"]
[null,"odcinek nr 2 ",null,null,null,null,null,"prowadzi do:"]
[null,"odcinek nr 3 ",null,null,null,null,null,"prowadzi do:"]
[null,"G.","Bezpośrednio w ciągu drogi objętej zadaniem przebiega linia autobusowa objęta wsparciem z Funduszu Rozwoju Przewozów Autobusowych, lub realizowane są usługi transportu publicznego lub uchwalono planowany przebieg linii użyteczności publicznej"]
[null,"odcinek nr 1 "]
[null,"odcinek nr 2 "]
[null,"odcinek nr 3 "]
[null,"Kryterium nr 5",null,null,null,"ꟷ","Poprawa dostępności do terenów gospodarczych i inwestycyjnych"]
[null,"A.","Czy odcinek stanowi bezpośredni/pośredni dojazd do lokalnych ośrodków gospodarczych np. do strefy ekonomicznej, podmiotów gospodarczych, lokalnego targowiska."]
[null,"odcinek nr 1 ",null,null,null,null,null,null,null,null,null,"dojazd do:"]
[null,"odcinek nr 2 ",null,null,null,null,null,null,null,null,null,"dojazd do:"]
[null,"odcinek nr 3 ",null,null,null,null,null,null,null,null,null,"dojazd do:"]
[null,"B.","Czy odcinek umożliwia bezpośredni/pośredni dojazd do terenów inwestycyjnych, rozumianych jako tereny przeznaczone w studium uwarunkowań przestrzennych, miejscowym planie zagospodarowania lub w decyzji lokalizacyjnej pod działalność gospodarczą. "]
[null,"odcinek nr 1 ",null,null,null,null,null,null,null,null,null,"dojazd do:"]
[null,"odcinek nr 2 ",null,null,null,null,null,null,null,null,null,"dojazd do:"]
[null,"odcinek nr 3 ",null,null,null,null,null,null,null,null,null,"dojazd do:"]
[null,"C.","Czy odcinek stanowi bezpośredni/pośredni dojazd do terenów, na których jest prowadzona produkcja rolna, sadownictwo, ogrodnictwo lub/i zlokalizowane są gospodarstwa agroturystyczne, ważne ze względu na specyfikę obszaru.  "]
[null,"odcinek nr 1 ",null,null,null,null,null,null,null,null,null,"dojazd do:"]
[null,"odcinek nr 2 ",null,null,null,null,null,null,null,null,null,"dojazd do:"]
[null,"odcinek nr 3 ",null,null,null,null,null,null,null,null,null,"dojazd do:"]
["13. OSOBY UPOWAŻNIONE DO UDZIELANIA WYJAŚNIEŃ KOMISJI"]
["Lp.",null,"imię i nazwisko",null,null,null,null,null,null,null,null,"nr telefonu",null,null,null,null,null,"e-mail"]
[1]
[2]
[3]
["14. OŚWIADCZENIE WNIOSKODAWCY (ustawowego zarządcy drogi)"]
[null,"Wnioskodawca oświadcza, że: "]
[null,null,"1)","dane i informacje zawarte we wniosku są prawidłowe i kompletne, "]
[null,null,"2)","zadanie obejmuje wyłącznie drogi publiczne,  "]
[null,null,"3)\n","jednostka zobowiązuje się do realizacji przedmiotowego zadania z zachowaniem odpowiedniego oznakowania i zastosowania urządzeń bezpieczeństwa i organizacji ruchu,"]
[null,null,"4)","zapewnione zostanie zabezpieczenie całości zadeklarowanego we wniosku wkładu własnego,"]
[null,null,"5)","wkład własny obejmuje wyłącznie środki nie pochodzące z budżetu państwa ani z budżetu Unii Europejskiej,"]
[null,null,"6)","do wniosku dołączone zostały załączniki:   "]
[null,null,null,"a)","zaświadczenie organu administracji architektoniczno-budowlanej o braku podstaw do wniesienia sprzeciwu na zgłoszenie wykonania robót budowlanych - dotyczy robót realizowanych na podstawie zgłoszenia (obligatoryjnie),"]
[null,null,null,"b)","czytelna mapa poglądowa z zaznaczonymi elementami mającymi wpływ na ocenę merytoryczną wniosku - dotyczy kryterium nr 4 i nr 5 (obligatoryjnie),"]
[null,null,null,"c)","kopia strony projektu stałej organizacji ruchu, z której wynika, że projekt jest zatwierdzony lub pismo organu uprawnionego do zatwierdzenia organizacji ruchu (obligatoryjnie),"]
[null,null,null,"d)","kopia projektu zagospodarowania terenu / plan sytuacyjno-wysokościowy na mapie pobranej z PODGiK  z zaznaczonymi parametrami remontowanej drogi (obligatoryjnie), "]
[null,null,null,"e)","rysunki  z charakterystycznymi przekrojami poprzecznymi pasa drogowego w liniach rozgraniczających z wykazaniem wszystkich elementów drogi - przekroje normalne i przekroje konstrukcyjne lub normalno-konstrukcyjne (obligatoryjnie),"]
[null,null,null,"f)","kopia kosztorysu inwestorskiego (obligatoryjnie),"]
[null,null,null,"g)","informacja dotycząca komplementarności zadania z programami rządowymi z podaniem nazwy programu, numeru i daty umowy z Wojewodą lub umowy/umów wynikających z programów społeczno - gospodarczych - dotyczy kryterium nr 4  (jeśli dotyczy), "]
[null,null,null,"h)","oświadczenie o przekazaniu danych o sieci dróg publicznych  do Generalnego Dyrektora Dróg Krajowych i Autostrad (obligatoryjnie)."]
[]
[null,"Ja, niżej podpisany zobowiązuję się do: "]
[null,null,"• przeprowadzenia postępowania o zamówienie publiczne zgodnie z obowiązującymi przepisami Prawa zamówień publicznych.     "]
["Podpisy i pieczątki osób upoważnionych z ramienia wnioskodawcy (wraz z podpisem Skarbnika/Głównego Księgowego) - ustawowy zarządca drogi"]